Workbook

Sheet HowTo
A2: The Example page is a consolidated example to assist. The information is for representative purposes only.
A5: Instructions on how to complete the Summary page.
A6: Step 1 | B6: Type your company name in Name of Bidder, contact information in the space provided.
A7: Step 2 | B7: No action is required for the responses to each bid; when you complete the separate bid submissions the information is brought forward.
A9: Instructions on how to complete the various portions of pages OR Tambo, Bram Fischer and George.
A10: Key Financial Information and Indicators
A11: Step 1 | B11: Select Y is the Bidder's proposal includes this site. Otherwise ensure N is set.
A12: Step 2 | B12: Complete the financial information and indicators.
A13: Estimate Time Line for the FIPDM Project Stages
A14: Step 1 | B14: Type the start and end date for each stage. Do this for each stage.
A15: Step 2 | B15: The number of working days is calculated for each pair of start and end dates that you typed. No further action is required for this section of the document.
A17: Land Lease Projection
A18: Step 1 | B18: Type the monthly land lease amount that you expect to pay for Year 1 in cell G24.
A19: Step 2 | B19: The annual escalation percentage that ACSA applies is set in column E. If you want to change the percentages, type the percentage applicable to the year or years you want to change.
A20: Step 3 | B20: No action is required for the responses to each bid; when you complete the separate bid submissions the information is brought forward.
A22: Projected Fuel Sales
A23: Step 1 | B23: Change the percentage of profit due to ACSA if different from the minimum percentage.
A24: Step 2 | B24: Type the total projected monthly fuel sales for each year in column titled Monthly Sales.
A25: Step 3 | B25: The annual fuel sales based on the monthly amount you typed in is calculated. No further action is required in this column.
A26: Step 4 | B26: The annual profit is calculated based on the annual profit calculated in the previous column. No further action is required in this column.
A28: Projected Convenience Store Sales
A29: Step 1 | B29: Change the percentage of profit due to ACSA if different from the minimum percentage.
A30: Step 2 | B30: Type the total projected monthly convenience store sales for each year in column titled Monthly Sales.
A31: Step 3 | B31: The annual convenience store sales based on the monthly amount you typed in is calculated. No further action is required in this column.
A32: Step 4 | B32: The annual profit is calculated based on the annual profit calculated in the previous column. No further action is required in this column.
A34: Projected Sales of Other Activities
A35: Step 1 | B35: Change the percentage of profit due to ACSA if different from the minimum percentage.
A36: Step 2 | B36: Type the total projected monthly sales from any other activities for each year in column titled Monthly Sales.
A37: Step 3 | B37: The annual sales from any other activities based on the monthly amount you typed in is calculated. No further action is required in this column.
A38: Step 4 | B38: The annual profit is calculated based on the annual profit calculated in the previous column. No further action is required in this column.
A40: Projected Profit and Loss Statement for three years
A41: Step 1 | B41: Update the description from Product / Service 1 to a summarised description of the main product or service included in the Profit and Loss Statements of the company. Repeat this for the remaining descriptions to a maximum of six (6) line items.
A42: Step 2 | B42: Type the projected annual total for the sales category described. Do this for each of the categories you specified.
A43: Step 3 | B43: Repeat steps 1 and 2 for the next 2 years of data.
A44: Step 4 | B44: The subtotal of the sales is calculated automatically. No action is required for the aggregation.
A45: Step 5 | B45: The cost of sales Product / Service details will change to the categories you specified in step 1 above. No further action is required for the Cost of Sales descriptions.
A46: Step 6 | B46: Type the projected annual total for the sales category described. Do this for each of the categories you specified.
A47: Step 7 | B47: The gross profit for each year will be calculated : Sales less Cost of Sales. No further action is required to calculate the Gross Profit.
A48: Step 8 | B48: Replace "Summary Expense" with the expenses applicable to your company. Summarise as required. Use a line for kind of expense. The expenses will be aggregated for each year automatically.
A49: Step 9 | B49: Income for Operations is calculated. No further action is required.
A50: Step 10 | B50: Type in the estimated income tax for each year.
A51: Step 11 | B51: Net profit is calculated. No further action is required.
A52: Step 12 | B52: Type the percentage of the net profit for Airports Company for each year.
A53: Step 13 | B53: The Estimated Rand Value is calculated. No further action is required.
A55: Instruction on completing the References
A57: Step 1 | B57: Select from the drop down list the nature of the Bidders responsibilities.
A58: Step 2 | B58: Type the Client and or Company Name.
A59: Step 3 | B59: Describe the services and or responsibilities the Bidder had for this reference site.
A60: Step 4 | B60: The date of practical completion. If the date is in the future, specify it as "eta 2024/06/12" for the 12th of June 2024. Otherwise type the date in the format YYYY/MM/DD and the spreadsheet will update the format to be like 12-Jun-2024.
A61: Step 5 | B61: The date the team started on site with site establishment or similar.
A62: Step 6 | B62: The date the team departed from site and the facilities were ready to be operated.
A63: Step 7 | B63: The details of the person ACSA can reach out to as a reference for the work performed. Ideally we require the Title, Name or Initials, Surname, Telephone or Cellphone number, Email address.
A64: Step 8 | B64: Please use this column to add any information that will be of value to the bid evaluation team.
A66: The Documentation Sheet
B68: This sheet provides the list of documentation that may be applicable to this project for each stage of the engagement. Not all the items may apply for example Solar data. Some additional document requirements may be added once agreed between the parties concerned.

Sheet Example
J1: The information you need to type onto this document.
A2: ="The information for submitting a bid for Some Airport Service Station with Convenient Store Operations for Example Bidder "&CHAR(10) -> The information for submitting a bid for Some Airport Service Station with Convenient Store Operations for Example Bidder | J2: The heading includes the company name you typed on the summary page. No action is required from the Bidder.
A3: Proposal for Some Airport (Y/N) | I3: Y | J3: Select or type Y if you are submitting a proposal for this site.
A4: Name of Bidder | C4: =Summary!E2 -> 0 | J4: No action required from the Bidder.
A6: Estimate of Capital Investment | H6: R20,000,000.00 | J6: Type the information applicable for this site.
A7: The expected business growth over the duration of the concession (%) | H7: 3.0%
A8: Working capital required to start the business (year 1) | H8: R1,500,000.00
A9: Total square meters of the Development | H9: 4,000.00
A10: Hurdle Rate | H10: 12.0%
A11: Net Present Value (NPV) using 20 year period DCF | H11: 10.00
A12: Return on Investment (ROI) year 1 | H12: 1.65%
A13: Average year-on-year over the 20-year lease duration | H13: 0.00
A14: Internal Rate of Return (IRR) | H14: 16.0%
A17: Estimate Time Line for the Framework for Infrastructure Delivery and Procurement Management (FIPDM) Project Stages
A18: Stage | G18: Start | H18: End | I18: Working Days
A19: 1. Initiation | G19: 2023-07-01 | H19: 2023-08-01 | I19: =NETWORKDAYS(G19,H19) -> 22 | J19: Type in the estimated start and end dates using the format yyyy/mm/dd e.g. 2023/09/01 The working days will be calculated for you. Formula: Networkdays(Start Date, End Date).
A20: 2. Concept | G20: 2023-08-01 | H20: 2023-08-31 | I20: =NETWORKDAYS(G20,H20) -> 23
A21: 3. Design Development | G21: 2023-08-31 | H21: 2023-09-30 | I21: 22
A22: 4. Design Documentation | G22: 2023-09-30 | H22: 2023-12-01 | I22: 45
A23: 5. Works | G23: 2023-12-01 | H23: 2024-12-01 | I23: 261
A24: 6. Handover | G24: 2024-12-01 | H24: 2025-01-15 | I24: 33
A25: 7. Close out | G25: 2025-01-15 | H25: 2025-01-18 | I25: 3
A27: Construction estimated from start and end | G27: =MIN(G19:G25) -> 2023-07-01 | H27: =MAX(H19:H25) -> 2025-01-18 | I27: 405 | J27: The earliest start date, latest end date and working days are calcuated. Holidays are no applicable for this exercise. No action is required from the Bidder.
A30: Land Lease Projection
A31: Year | E31: Escalation % | F31: Monthly Land Lease | H31: Annual Land Lease
A32: Year 1 | E32: - | F32: R150,000.00 | H32: =F32*12 -> R1,800,000.00 | J32: Type in the monthly lease you propose for the first year. No other months are required because the percentage escalation is applied. The ACSA minimum percentage increase is 8%. You can change the percentage if required. The percentage will be revisited at the mid point of the contract i.e. year 10. The percentage escalation applies from the second year onwards. Formulae: Monthly Land Lease = Monthly Land Lease from previous year + Escalation percentage of Monthly Land Lease from previous year Annual Land Lease = Monthly Land Lease X 12
A33: Year 2 | E33: 8.0% | F33: =(F32*(1+E33)) -> R162,000.00 | H33: R1,944,000.00
A34: Year 3 | E34: 8.0% | F34: R174,960.00 | H34: R2,099,520.00
A35: Year 4 | E35: 8.0% | F35: R188,956.80 | H35: R2,267,481.60
A36: Year 5 | E36: 8.0% | F36: R204,073.34 | H36: R2,448,880.13
A37: Year 6 | E37: 8.0% | F37: R220,399.21 | H37: R2,644,790.54
A38: Year 7 | E38: 8.0% | F38: R238,031.15 | H38: R2,856,373.78
A39: Year 8 | E39: 8.0% | F39: R257,073.64 | H39: R3,084,883.68
A40: Year 9 | E40: 8.0% | F40: R277,639.53 | H40: R3,331,674.38
A41: Year 10 | E41: 8.0% | F41: R299,850.69 | H41: R3,598,208.33
A42: Year 11 | E42: 8.0% | F42: R323,838.75 | H42: R3,886,065.00
A43: Year 12 | E43: 8.0% | F43: R349,745.85 | H43: R4,196,950.19
A44: Year 13 | E44: 8.0% | F44: R377,725.52 | H44: R4,532,706.21
A45: Year 14 | E45: 8.0% | F45: R407,943.56 | H45: =F45*12 -> R4,895,322.71
A46: Year 15 | E46: 8.0% | F46: R440,579.04 | H46: =F46*12 -> R5,286,948.52
A47: Year 16 | E47: 8.0% | F47: R475,825.37 | H47: =F47*12 -> R5,709,904.41
A48: Year 17 | E48: 8.0% | F48: R513,891.40 | H48: =F48*12 -> R6,166,696.76
A49: Year 18 | E49: 8.0% | F49: R555,002.71 | H49: =F49*12 -> R6,660,032.50
A50: Year 19 | E50: 8.0% | F50: R599,402.92 | H50: R7,192,835.10
A51: Year 20 | E51: 8.0% | F51: R647,355.16 | H51: R7,768,261.91
A52: Total | H52: =SUM(H32:I51) -> R82,371,535.74 | J52: No action is required from the Bidder. Formula = sum(rows above)
A55: Projected Fuel Sales
A56: Year | C56: Profit % | D56: Monthly Sales | F56: Annual Sales | H56: Annual Profit
A57: Year 1 | C57: 2% | D57: R200,000.00 | F57: =D57*12 -> R2,400,000.00 | H57: =(D57*C57)*12 -> R48,000.00 | J57: Type in the estimated monthly sales for each year. Suggest average is used. The proposed ACSA profit percentage is 10%. You can change the percentage if required. Formulae: Annual Sales = Monthly Sales X 12 Annual Profit = Profit percentage of Annual Sales
A58: Year 2 | C58: 2% | D58: R220,000.00 | F58: =D58*12 -> R2,640,000.00 | H58: R52,800.00
A59: Year 3 | C59: 2% | D59: R240,000.00 | F59: R2,880,000.00 | H59: R57,600.00
A60: Year 4 | C60: 2% | D60: R260,000.00 | F60: R3,120,000.00 | H60: R62,400.00
A61: Year 5 | C61: 2% | D61: R280,000.00 | F61: R3,360,000.00 | H61: R67,200.00
A62: Year 6 | C62: 2% | D62: R300,000.00 | F62: R3,600,000.00 | H62: R72,000.00
A63: Year 7 | C63: 2% | D63: R320,000.00 | F63: R3,840,000.00 | H63: R76,800.00
A64: Year 8 | C64: 2% | D64: R340,000.00 | F64: R4,080,000.00 | H64: R81,600.00
A65: Year 9 | C65: 2% | D65: R360,000.00 | F65: R4,320,000.00 | H65: R86,400.00
A66: Year 10 | C66: 2% | D66: R380,000.00 | F66: R4,560,000.00 | H66: R91,200.00
A67: Year 11 | C67: 2% | D67: R400,000.00 | F67: R4,800,000.00 | H67: R96,000.00
A68: Year 12 | C68: 2% | D68: R420,000.00 | F68: R5,040,000.00 | H68: R100,800.00
A69: Year 13 | C69: 2% | D69: R440,000.00 | F69: R5,280,000.00 | H69: R105,600.00
A70: Year 14 | C70: 2% | D70: R460,000.00 | F70: R5,520,000.00 | H70: R110,400.00
A71: Year 15 | C71: 2% | D71: R480,000.00 | F71: R5,760,000.00 | H71: R115,200.00
A72: Year 16 | C72: 2% | D72: R500,000.00 | F72: R6,000,000.00 | H72: R120,000.00
A73: Year 17 | C73: 2% | D73: R520,000.00 | F73: R6,240,000.00 | H73: R124,800.00
A74: Year 18 | C74: 2% | D74: R540,000.00 | F74: R6,480,000.00 | H74: R129,600.00
A75: Year 19 | C75: 2% | D75: R560,000.00 | F75: R6,720,000.00 | H75: R134,400.00
A76: Year 20 | C76: 2% | D76: R580,000.00 | F76: R6,960,000.00 | H76: R139,200.00
A77: Total | F77: =SUM(F57:G76) -> R93,600,000.00 | H77: =SUM(H57:I76) -> R1,872,000.00 | J77: No action is required from the Bidder. Formula = sum(rows above)
A80: Projected Convenience Store Sales
A81: Year | C81: Profit % | D81: Monthly Sales | F81: Annual Sales | H81: Annual Profit
A82: Year 1 | C82: 1% | D82: R100,000.00 | F82: =D82*12 -> R1,200,000.00 | H82: =(D82*C82)*12 -> R12,000.00 | J82: Type in the estimated monthly sales for each year. Suggest average is used. The proposed ACSA profit percentage is 1%. You can change the percentage if required. Formulae: Annual Sales = Monthly Sales X 12 Annual Profit = Profit percentage of Annual Sales
A83: Year 2 | C83: 1% | D83: R120,000.00 | F83: =D83*12 -> R1,440,000.00 | H83: R14,400.00
A84: Year 3 | C84: 1% | D84: R140,000.00 | F84: R1,680,000.00 | H84: R16,800.00
A85: Year 4 | C85: 1% | D85: R160,000.00 | F85: R1,920,000.00 | H85: R19,200.00
A86: Year 5 | C86: 1% | D86: R180,000.00 | F86: R2,160,000.00 | H86: R21,600.00
A87: Year 6 | C87: 1% | D87: R200,000.00 | F87: R2,400,000.00 | H87: R24,000.00
A88: Year 7 | C88: 1% | D88: R220,000.00 | F88: R2,640,000.00 | H88: R26,400.00
A89: Year 8 | C89: 1% | D89: R240,000.00 | F89: R2,880,000.00 | H89: R28,800.00
A90: Year 9 | C90: 1% | D90: R260,000.00 | F90: R3,120,000.00 | H90: R31,200.00
A91: Year 10 | C91: 1% | D91: R280,000.00 | F91: R3,360,000.00 | H91: R33,600.00
A92: Year 11 | C92: 1% | D92: R300,000.00 | F92: R3,600,000.00 | H92: R36,000.00
A93: Year 12 | C93: 1% | D93: R320,000.00 | F93: R3,840,000.00 | H93: R38,400.00
A94: Year 13 | C94: 1% | D94: R340,000.00 | F94: R4,080,000.00 | H94: R40,800.00
A95: Year 14 | C95: 1% | D95: R360,000.00 | F95: R4,320,000.00 | H95: R43,200.00
A96: Year 15 | C96: 1% | D96: R380,000.00 | F96: R4,560,000.00 | H96: R45,600.00
A97: Year 16 | C97: 1% | D97: R400,000.00 | F97: R4,800,000.00 | H97: R48,000.00
A98: Year 17 | C98: 1% | D98: R420,000.00 | F98: R5,040,000.00 | H98: R50,400.00
A99: Year 18 | C99: 1% | D99: R440,000.00 | F99: R5,280,000.00 | H99: R52,800.00
A100: Year 19 | C100: 1% | D100: R460,000.00 | F100: R5,520,000.00 | H100: R55,200.00
A101: Year 20 | C101: 1% | D101: R480,000.00 | F101: R5,760,000.00 | H101: R57,600.00
A102: Total | F102: =SUM(F82:G101) -> R69,600,000.00 | H102: =SUM(H82:I101) -> R696,000.00 | J102: No action is required from the Bidder. Formula = sum(rows above)
A105: Projected Sales of Other Activities
A106: Year | C106: Profit % | D106: Monthly Sales | F106: Annual Sales | H106: Annual Profit
A107: Year 1 | C107: 1% | D107: R20,000.00 | F107: =D107*12 -> R240,000.00 | H107: =(D107*C107)*12 -> R2,400.00 | J107: Type in the estimated monthly sales for each year. Suggest average is used. The proposed ACSA profit percentage is 1%. You can change the percentage if required. Formulae: Annual Sales = Monthly Sales X 12 Annual Profit = Profit percentage of Annual Sales
A108: Year 2 | C108: 1% | D108: R25,000.00 | F108: R300,000.00 | H108: R3,000.00
A109: Year 3 | C109: 1% | D109: R30,000.00 | F109: R360,000.00 | H109: R3,600.00
A110: Year 4 | C110: 1% | D110: R35,000.00 | F110: R420,000.00 | H110: R4,200.00
A111: Year 5 | C111: 1% | D111: R40,000.00 | F111: R480,000.00 | H111: R4,800.00
A112: Year 6 | C112: 1% | D112: R45,000.00 | F112: R540,000.00 | H112: R5,400.00
A113: Year 7 | C113: 1% | D113: R50,000.00 | F113: R600,000.00 | H113: R6,000.00
A114: Year 8 | C114: 1% | D114: R55,000.00 | F114: R660,000.00 | H114: R6,600.00
A115: Year 9 | C115: 1% | D115: R60,000.00 | F115: R720,000.00 | H115: R7,200.00
A116: Year 10 | C116: 1% | D116: R65,000.00 | F116: R780,000.00 | H116: R7,800.00
A117: Year 11 | C117: 1% | D117: R70,000.00 | F117: R840,000.00 | H117: R8,400.00
A118: Year 12 | C118: 1% | D118: R75,000.00 | F118: R900,000.00 | H118: R9,000.00
A119: Year 13 | C119: 1% | D119: R80,000.00 | F119: R960,000.00 | H119: R9,600.00
A120: Year 14 | C120: 1% | D120: R85,000.00 | F120: R1,020,000.00 | H120: R10,200.00
A121: Year 15 | C121: 1% | D121: R90,000.00 | F121: R1,080,000.00 | H121: R10,800.00
A122: Year 16 | C122: 1% | D122: R95,000.00 | F122: R1,140,000.00 | H122: R11,400.00
A123: Year 17 | C123: 1% | D123: R100,000.00 | F123: R1,200,000.00 | H123: R12,000.00
A124: Year 18 | C124: 1% | D124: R105,000.00 | F124: R1,260,000.00 | H124: R12,600.00
A125: Year 19 | C125: 1% | D125: R110,000.00 | F125: R1,320,000.00 | H125: R13,200.00
A126: Year 20 | C126: 1% | D126: R115,000.00 | F126: R1,380,000.00 | H126: R13,800.00
A127: Total | F127: =SUM(F107:G126) -> R16,200,000.00 | H127: =SUM(H107:I126) -> R162,000.00 | J127: No action is required from the Bidder. Formula = sum(rows above)
A130: Projected Profit and Loss Statement for three years
A131: Sales Revenue | D131: Year 1 | F131: Year 2 | H131: Year 3
A132: All fuel types | D132: R2,500,000.00 | F132: R3,000,000.00 | H132: R3,500,000.00 | J132: Change the Product / Service description with an appropriate description of sales e.g. Unleaded Fuel. Change the descriptions for a maximum of 6 categories. Leave the description as is if you do not require it. Type in the estimated Sales for the first three years in the respective columns.
A138: Sales Subtotal | D138: =SUM(D132:E137) -> R2,500,000.00 | F138: =SUM(F132:G137) -> R3,000,000.00 | H138: =SUM(H132:I137) -> R3,500,000.00 | J138: No action is required from the Bidder. Formula = sum(rows above)
A140: Cost of Sales | D140: Year 1 | F140: Year 2 | H140: Year 3
A141: =A132 -> All fuel types | D141: R1,500,000.00 | F141: R1,800,000.00 | H141: R2,000,000.00 | J141: Change the Product / Service description with an appropriate description of sales e.g. Deliveries. Change the descriptions for a maximum of 6 categories. Leave the description as is if you do not require it. Type in the estimated Cost of Sales for the first three years in the respective columns.
A142: 0
A143: 0
A144: 0
A145: 0
A146: 0
A147: Cost of Sales Subtotal | D147: =SUM(D141:E146) -> R1,500,000.00 | F147: =SUM(F141:G146) -> R1,800,000.00 | H147: =SUM(H141:I146) -> R2,000,000.00 | J147: No action is required from the Bidder. Formula = sum(rows above)
A149: Gross Profit | D149: =D138-D147 -> R1,000,000.00 | F149: =F138-F147 -> R1,200,000.00 | H149: =H138-H147 -> R1,500,000.00 | J149: No action is required from the Bidder. Formula = Total Sales - Total Cost of Sales for the year
A151: Operating Expenses | D151: Year 1 | F151: Year 2 | H151: Year 3
A152: Salaries and Wages | D152: R300,000.00 | F152: R350,000.00 | H152: R400,000.00 | J152: Change the Summary Expense description with an appropriate description of expenses e.g. Stationery. Change the descriptions for a maximum of 12 categories. Leave the description as is if you do not require it. Type in the estimated Expense for the first three years in the respective columns.
A153: Rent and Utilities | D153: R100,000.00 | F153: R120,000.00 | H153: R140,000.00
A154: Advertising | D154: R50,000.00 | F154: R60,000.00 | H154: R70,000.00
A155: Maintenance and Repairs | D155: R80,000.00 | F155: R90,000.00 | H155: R100,000.00
A156: Insurance | D156: R40,000.00 | F156: R45,000.00 | H156: R50,000.00
A157: Other Expenses | D157: R10,000.00 | F157: R12,000.00 | H157: R14,000.00
A158: Summary Expense 7
A159: Summary Expense 8
A160: Summary Expense 9
A161: Summary Expense 10
A162: Summary Expense 11
A163: Summary Expense 12
A164: Operating Expenses Subtotal | D164: =SUM(D152:E163) -> R580,000.00 | F164: =SUM(F152:G163) -> R677,000.00 | H164: =SUM(H152:I163) -> R774,000.00 | J164: No action is required from the Bidder. Formula = Sum of all expenses for the year
A166: Income from Operations | D166: =D149-D164 -> R420,000.00 | F166: =F149-F164 -> R523,000.00 | H166: =H149-H164 -> R726,000.00 | J166: No action is required from the Bidder. Formula = Gross profit - Operating Expenses for the year
A168: Taxes | D168: R100,000.00 | F168: R125,000.00 | H168: R170,000.00 | J168: Type is the estimated taxes payable for each year.
A170: Net Profit | D170: =D166-D168 -> R320,000.00 | F170: =F166-F168 -> R398,000.00 | H170: =H166-H168 -> R556,000.00 | J170: No action is required from the Bidder. Formula = Income from Operations - Taxes for the year
A171: Percent of net profit payable to ACSA | D171: 10% | F171: 12% | H171: 14% | J171: Type is the estimated profit percentage payable for each year for ACSA.
A172: Estimated R value | D172: =D170*D171 -> R32,000.00 | F172: =F170*F171 -> R47,760.00 | H172: =H170*H171 -> R77,840.00 | J172: No action is required from the Bidder. Formula = Net Profit X ACSA Percentage of Net Profit for each year

Sheet Summary
A1: Summary Page | J1: The information you need to type onto this document.
A2: Name of Tenderer (Bidding Entity) | J2: Type the Bidder's company name.
A3: Tel Number | J3: Type the Bidder's contact information.
A4: Email
A5: Name of Contact | J5: Type the name and surname of your tender contact person.
A6: National Treasury CSD Registration Number | J6: Type the Bidder's company CSD number.
A7: Bid for OR Tambo Airport (Y/N) | I7: ='OR Tambo'!I3 -> Y | J7: No action required from the Bidder.
A8: Bid for Bram Fischer (Y/N) | I8: ='Bram Fischer'!I3 -> N | J8: No action required from the Bidder.
A9: Bid for George Airport (Y/N) | I9: =George!I3 -> N | J9: No action required from the Bidder.
J10: No action required from the Bidder. The information is linked to any details you complete in the OR Tambo, Bram Fischer and George sheets. Remember to sign (initial) or stamp the bottom of the page for inclusion in your hardcopy submission AND attached this spreadsheet to your electronic submission.
D11: OR Tambo | F11: Bram Fischer | H11: George
A12: Estimate of Capital Investment | D12: ='OR Tambo'!H6 -> R0.00 | F12: ='Bram Fischer'!H5 -> R0.00 | H12: =George!H5 -> R0.00
A13: Hurdle Rate | D13: ='OR Tambo'!H10 -> 0% | F13: ='Bram Fischer'!H9 -> 0% | H13: =George!H9 -> 0%
A14: Internal Rate of Return (IRR) | D14: ='OR Tambo'!H14 -> 0% | F14: ='Bram Fischer'!H13 -> 0% | H14: =George!H13 -> 0%
A15: 20 Year Projected Land Lease | D15: ='OR Tambo'!H52 -> R0.00 | F15: =SUM('Bram Fischer'!H31:I50) -> R0.00 | H15: =SUM(George!H31:I50) -> R0.00
A16: 20 Year Projected Fuel Sales | D16: ='OR Tambo'!F77 -> R0.00 | F16: =SUM('Bram Fischer'!H55:I74) -> R0.00 | H16: =SUM(George!H55:I74) -> R0.00
A17: 20 Year Project Profit on Fuel | D17: ='OR Tambo'!H77 -> R0.00
A18: 20 Year Projected Convenience Store Sales | D18: ='OR Tambo'!F102 -> R0.00 | F18: =SUM('Bram Fischer'!H79:I98) -> R0.00 | H18: =SUM(George!H79:I98) -> R0.00
A19: 20 Year Projected Profit on Convenience Store Sales | D19: ='OR Tambo'!H102 -> R0.00 | F19: =SUM('Bram Fischer'!H80:I99) -> R0.00 | H19: =SUM(George!H80:I99) -> R0.00
A20: 20 Year Projected Amenities Sales | D20: ='OR Tambo'!F127 -> R0.00 | F20: =SUM('Bram Fischer'!H103:I122) -> R0.00 | H20: =SUM(George!H103:I122) -> R0.00
A21: 20 Year Projected Profit on Amenities Sales | D21: ='OR Tambo'!H127 -> R0.00 | F21: =SUM('Bram Fischer'!H104:I123) -> R0.00 | H21: =SUM(George!H104:I123) -> R0.00
A22: Gross Profit for three years | D22: =SUM('OR Tambo'!D149:I149) -> R0.00 | F22: =SUM('Bram Fischer'!D144:I144) -> R0.00 | H22: =SUM(George!D144:I144) -> R0.00
A23: Net Profit for three years | D23: =SUM('OR Tambo'!D170:I170) -> R0.00 | F23: =SUM('Bram Fischer'!D165:I165) -> R0.00 | H23: =SUM(George!D165:I165) -> R0.00
A24: ACSA Profit for three years | D24: =SUM('OR Tambo'!D172:I172) -> R0.00 | F24: =SUM('Bram Fischer'!D167:I167) -> R0.00 | H24: =SUM(George!D167:I167) -> R0.00
A25: Construction Timeline | D25: From | E25: To | F25: From | G25: To | H25: From | I25: To
D26: ='OR Tambo'!G27 -> 00:00:00 | E26: ='OR Tambo'!H27 -> 00:00:00 | F26: ='Bram Fischer'!G26 -> 00:00:00 | G26: ='Bram Fischer'!H26 -> 00:00:00 | H26: =George!G26 -> 00:00:00 | I26: =George!H26 -> 00:00:00

Sheet OR Tambo
J1: The information you need to type onto this document.
A2: ="The information for submitting a bid for OR Tambo Airport Service Station with Convenient Store Operations for "&CHAR(10)&Summary!E2 -> The information for submitting a bid for OR Tambo Airport Service Station with Convenient Store Operations for | J2: The heading includes the company name you typed on the summary page. No action is required from the Bidder.
A3: Proposal for OR Tambo Airport (Y/N) | I3: Y | J3: Select or type Y if you are submitting a proposal for this site.
A4: Name of Bidder | C4: =Summary!E2 -> 0 | J4: No action required from the Bidder.
A6: Estimate of Capital Investment | H6: R0.00 | J6: Type the information applicable for this site.
A7: The expected business growth over the duration of the concession (%) | H7: 0.0%
A8: Working capital required to start the business (year 1) | H8: R0.00
A9: Total square meters of the Development | H9: 0.00
A10: Hurdle Rate | H10: 0.0%
A11: Net Present Value (NPV) using 20 year period DCF | H11: 0.00
A12: Return on Investment (ROI) year 1 | H12: 0.00
A13: Average year-on-year over the 20-year lease duration | H13: 0.00
A14: Internal Rate of Return (IRR) | H14: 0.0%
A17: Estimate Time Line for the Framework for Infrastructure Delivery and Procurement Management (FIPDM) Project Stages
A18: Stage | G18: Start | H18: End | I18: Working Days
A19: 1. Initiation | I19: =NETWORKDAYS(G19,H19) -> 0 | J19: Type in the estimated start and end dates using the format yyyy/mm/dd e.g. 2023/09/01 The working days will be calculated for you. Formula: Networkdays(Start Date, End Date).
A20: 2. Concept | I20: =NETWORKDAYS(G20,H20) -> 0
A21: 3. Design Development | I21: 0
A22: 4. Design Documentation | I22: 0
A23: 5. Works | I23: 0
A24: 6. Handover | I24: 0
A25: 7. Close out | I25: 0
A27: Construction estimated from start and end | G27: =MIN(G19:G25) -> 00:00:00 | H27: =MAX(H19:H25) -> 00:00:00 | I27: 0 | J27: The earliest start date, latest end date and working days are calcuated. Holidays are no applicable for this exercise. No action is required from the Bidder.
A30: Land Lease Projection
A31: Year | E31: Escalation % | F31: Monthly Land Lease | H31: Annual Land Lease
A32: Year 1 | E32: - | H32: =F32*12 -> R0.00 | J32: Type in the monthly lease you propose for the first year. No other months are required because the percentage escalation is applied. The ACSA minimum percentage increase is 8%. You can change the percentage if required. The percentage will be revisited at the mid point of the contract i.e. year 10. The percentage escalation applies from the second year onwards. Formulae: Monthly Land Lease = Monthly Land Lease from previous year + Escalation percentage of Monthly Land Lease from previous year Annual Land Lease = Monthly Land Lease X 12
A33: Year 2 | E33: 8.0% | F33: =(F32*(1+E33)) -> R0.00 | H33: R0.00
A34: Year 3 | E34: 8.0% | F34: R0.00 | H34: R0.00
A35: Year 4 | E35: 8.0% | F35: R0.00 | H35: R0.00
A36: Year 5 | E36: 8.0% | F36: R0.00 | H36: R0.00
A37: Year 6 | E37: 8.0% | F37: R0.00 | H37: R0.00
A38: Year 7 | E38: 8.0% | F38: R0.00 | H38: R0.00
A39: Year 8 | E39: 8.0% | F39: R0.00 | H39: R0.00
A40: Year 9 | E40: 8.0% | F40: R0.00 | H40: R0.00
A41: Year 10 | E41: 8.0% | F41: R0.00 | H41: R0.00
A42: Year 11 | E42: 8.0% | F42: =(F41*(1+E42)) -> R0.00 | H42: =F42*12 -> R0.00
A43: Year 12 | E43: 8.0% | F43: R0.00 | H43: R0.00
A44: Year 13 | E44: 8.0% | F44: R0.00 | H44: R0.00
A45: Year 14 | E45: 8.0% | F45: R0.00 | H45: =F45*12 -> R0.00
A46: Year 15 | E46: 8.0% | F46: R0.00 | H46: =F46*12 -> R0.00
A47: Year 16 | E47: 8.0% | F47: R0.00 | H47: =F47*12 -> R0.00
A48: Year 17 | E48: 8.0% | F48: R0.00 | H48: =F48*12 -> R0.00
A49: Year 18 | E49: 8.0% | F49: R0.00 | H49: =F49*12 -> R0.00
A50: Year 19 | E50: 8.0% | F50: R0.00 | H50: R0.00
A51: Year 20 | E51: 8.0% | F51: R0.00 | H51: R0.00
A52: Total | H52: =SUM(H32:I51) -> R0.00 | J52: No action is required from the Bidder. Formula = sum(rows above)
A55: Projected Fuel Sales
A56: Year | C56: Profit % | D56: Monthly Sales | F56: Annual Sales | H56: Annual Profit
A57: Year 1 | C57: 10% | F57: =D57*12 -> R0.00 | H57: =(D57*C57)*12 -> R0.00 | J57: Type in the estimated monthly sales for each year. Suggest average is used. The proposed ACSA profit percentage is 10%. You can change the percentage if required. Formulae: Annual Sales = Monthly Sales X 12 Annual Profit = Profit percentage of Annual Sales
A58: Year 2 | C58: 10% | F58: =D58*12 -> R0.00 | H58: R0.00
A59: Year 3 | C59: 10% | F59: R0.00 | H59: R0.00
A60: Year 4 | C60: 10% | F60: R0.00 | H60: R0.00
A61: Year 5 | C61: 10% | F61: R0.00 | H61: R0.00
A62: Year 6 | C62: 10% | F62: R0.00 | H62: R0.00
A63: Year 7 | C63: 10% | F63: R0.00 | H63: R0.00
A64: Year 8 | C64: 10% | F64: R0.00 | H64: R0.00
A65: Year 9 | C65: 10% | F65: R0.00 | H65: R0.00
A66: Year 10 | C66: 10% | F66: R0.00 | H66: R0.00
A67: Year 11 | C67: 10% | F67: =D67*12 -> R0.00 | H67: =(D67*C67)*12 -> R0.00
A68: Year 12 | C68: 10% | F68: R0.00 | H68: R0.00
A69: Year 13 | C69: 10% | F69: R0.00 | H69: R0.00
A70: Year 14 | C70: 10% | F70: R0.00 | H70: R0.00
A71: Year 15 | C71: 10% | F71: R0.00 | H71: R0.00
A72: Year 16 | C72: 10% | F72: R0.00 | H72: R0.00
A73: Year 17 | C73: 10% | F73: R0.00 | H73: R0.00
A74: Year 18 | C74: 10% | F74: R0.00 | H74: R0.00
A75: Year 19 | C75: 10% | F75: R0.00 | H75: R0.00
A76: Year 20 | C76: 10% | F76: R0.00 | H76: R0.00
A77: Total | F77: =SUM(F57:G76) -> R0.00 | H77: =SUM(H57:I76) -> R0.00 | J77: No action is required from the Bidder. Formula = sum(rows above)
A80: Projected Convenience Store Sales
A81: Year | C81: Profit % | D81: Monthly Sales | F81: Annual Sales | H81: Annual Profit
A82: Year 1 | C82: 1% | F82: =D82*12 -> R0.00 | H82: =(D82*C82)*12 -> R0.00 | J82: Type in the estimated monthly sales for each year. Suggest average is used. The proposed ACSA profit percentage is 1%. You can change the percentage if required. Formulae: Annual Sales = Monthly Sales X 12 Annual Profit = Profit percentage of Annual Sales
A83: Year 2 | C83: 1% | F83: =D83*12 -> R0.00 | H83: R0.00
A84: Year 3 | C84: 1% | F84: R0.00 | H84: R0.00
A85: Year 4 | C85: 1% | F85: R0.00 | H85: R0.00
A86: Year 5 | C86: 1% | F86: R0.00 | H86: R0.00
A87: Year 6 | C87: 1% | F87: R0.00 | H87: R0.00
A88: Year 7 | C88: 1% | F88: R0.00 | H88: R0.00
A89: Year 8 | C89: 1% | F89: R0.00 | H89: R0.00
A90: Year 9 | C90: 1% | F90: R0.00 | H90: R0.00
A91: Year 10 | C91: 1% | F91: R0.00 | H91: R0.00
A92: Year 11 | C92: 1% | F92: =D92*12 -> R0.00 | H92: =(D92*C92)*12 -> R0.00
A93: Year 12 | C93: 1% | F93: R0.00 | H93: R0.00
A94: Year 13 | C94: 1% | F94: R0.00 | H94: R0.00
A95: Year 14 | C95: 1% | F95: R0.00 | H95: R0.00
A96: Year 15 | C96: 1% | F96: R0.00 | H96: R0.00
A97: Year 16 | C97: 1% | F97: R0.00 | H97: R0.00
A98: Year 17 | C98: 1% | F98: R0.00 | H98: R0.00
A99: Year 18 | C99: 1% | F99: R0.00 | H99: R0.00
A100: Year 19 | C100: 1% | F100: R0.00 | H100: R0.00
A101: Year 20 | C101: 1% | F101: R0.00 | H101: R0.00
A102: Total | F102: =SUM(F82:G101) -> R0.00 | H102: =SUM(H82:I101) -> R0.00 | J102: No action is required from the Bidder. Formula = sum(rows above)
A105: Projected Sales of Other Activities
A106: Year | C106: Profit % | D106: Monthly Sales | F106: Annual Sales | H106: Annual Profit
A107: Year 1 | C107: 1% | F107: =D107*12 -> R0.00 | H107: =(D107*C107)*12 -> R0.00 | J107: Type in the estimated monthly sales for each year. Suggest average is used. The proposed ACSA profit percentage is 1%. You can change the percentage if required. Formulae: Annual Sales = Monthly Sales X 12 Annual Profit = Profit percentage of Annual Sales
A108: Year 2 | C108: 1% | F108: R0.00 | H108: R0.00
A109: Year 3 | C109: 1% | F109: R0.00 | H109: R0.00
A110: Year 4 | C110: 1% | F110: R0.00 | H110: R0.00
A111: Year 5 | C111: 1% | F111: R0.00 | H111: R0.00
A112: Year 6 | C112: 1% | F112: R0.00 | H112: R0.00
A113: Year 7 | C113: 1% | F113: R0.00 | H113: R0.00
A114: Year 8 | C114: 1% | F114: R0.00 | H114: R0.00
A115: Year 9 | C115: 1% | F115: R0.00 | H115: R0.00
A116: Year 10 | C116: 1% | F116: R0.00 | H116: R0.00
A117: Year 11 | C117: 1% | F117: =D117*12 -> R0.00 | H117: =(D117*C117)*12 -> R0.00
A118: Year 12 | C118: 1% | F118: R0.00 | H118: R0.00
A119: Year 13 | C119: 1% | F119: R0.00 | H119: R0.00
A120: Year 14 | C120: 1% | F120: R0.00 | H120: R0.00
A121: Year 15 | C121: 1% | F121: R0.00 | H121: R0.00
A122: Year 16 | C122: 1% | F122: R0.00 | H122: R0.00
A123: Year 17 | C123: 1% | F123: R0.00 | H123: R0.00
A124: Year 18 | C124: 1% | F124: R0.00 | H124: R0.00
A125: Year 19 | C125: 1% | F125: R0.00 | H125: R0.00
A126: Year 20 | C126: 1% | F126: R0.00 | H126: R0.00
A127: Total | F127: =SUM(F107:G126) -> R0.00 | H127: =SUM(H107:I126) -> R0.00 | J127: No action is required from the Bidder. Formula = sum(rows above)
A130: Projected Profit and Loss Statement for three years
A131: Sales Revenue | D131: Year 1 | F131: Year 2 | H131: Year 3
A132: Product / Service 1 | J132: Change the Product / Service description with an appropriate description of sales e.g. Unleaded Fuel. Change the descriptions for a maximum of 6 categories. Leave the description as is if you do not require it. Type in the estimated Sales for the first three years in the respective columns.
A133: Product / Service 2
A134: Product / Service 3
A135: Product / Service 4
A136: Product / Service 5
A137: Product / Service 6
A138: Sales Subtotal | D138: =SUM(D132:E137) -> R0.00 | F138: =SUM(F132:G137) -> R0.00 | H138: =SUM(H132:I137) -> R0.00 | J138: No action is required from the Bidder. Formula = sum(rows above)
A140: Cost of Sales | D140: Year 1 | F140: Year 2 | H140: Year 3
A141: =A132 -> Product / Service 1 | J141: Change the Product / Service description with an appropriate description of sales e.g. Deliveries. Change the descriptions for a maximum of 6 categories. Leave the description as is if you do not require it. Type in the estimated Cost of Sales for the first three years in the respective columns.
A142: Product / Service 2
A143: Product / Service 3
A144: Product / Service 4
A145: Product / Service 5
A146: Product / Service 6
A147: Cost of Sales Subtotal | D147: =SUM(D141:E146) -> R0.00 | F147: =SUM(F141:G146) -> R0.00 | H147: =SUM(H141:I146) -> R0.00 | J147: No action is required from the Bidder. Formula = sum(rows above)
A149: Gross Profit | D149: =D138-D147 -> R0.00 | F149: =F138-F147 -> R0.00 | H149: =H138-H147 -> R0.00 | J149: No action is required from the Bidder. Formula = Total Sales - Total Cost of Sales for the year
A151: Operating Expenses | D151: Year 1 | F151: Year 2 | H151: Year 3
A152: Summary Expense 1 | J152: Change the Summary Expense description with an appropriate description of expenses e.g. Stationery. Change the descriptions for a maximum of 12 categories. Leave the description as is if you do not require it. Type in the estimated Expense for the first three years in the respective columns.
A153: Summary Expense 2
A154: Summary Expense 3
A155: Summary Expense 4
A156: Summary Expense 5
A157: Summary Expense 6
A158: Summary Expense 7
A159: Summary Expense 8
A160: Summary Expense 9
A161: Summary Expense 10
A162: Summary Expense 11
A163: Summary Expense 12
A164: Operating Expenses Subtotal | D164: =SUM(D152:E163) -> R0.00 | F164: =SUM(F152:G163) -> R0.00 | H164: =SUM(H152:I163) -> R0.00 | J164: No action is required from the Bidder. Formula = Sum of all expenses for the year
A166: Income from Operations | D166: =D149-D164 -> R0.00 | F166: =F149-F164 -> R0.00 | H166: =H149-H164 -> R0.00 | J166: No action is required from the Bidder. Formula = Gross profit - Operating Expenses for the year
A168: Taxes | J168: Type is the estimated taxes payable for each year.
A170: Net Profit | D170: =D166-D168 -> R0.00 | F170: =F166-F168 -> R0.00 | H170: =H166-H168 -> R0.00 | J170: No action is required from the Bidder. Formula = Income from Operations - Taxes for the year
A171: Percent of net profit payable to ACSA | J171: Type is the estimated profit percentage payable for each year for ACSA.
A172: Estimated R value | D172: =D170*D171 -> R0.00 | F172: =F170*F171 -> R0.00 | H172: =H170*H171 -> R0.00 | J172: No action is required from the Bidder. Formula = Net Profit X ACSA Percentage of Net Profit for each year

Sheet Bram Fischer
J1: The information you need to type onto this document.
A2: ="The information for submitting a bid for Bram Fischer Airport Service Station with Convenient Store Operations for "&CHAR(10)&Summary!E2 -> The information for submitting a bid for Bram Fischer Airport Service Station with Convenient Store Operations for | J2: The heading includes the company name you typed on the summary page. No action is required from the Bidder.
A3: Proposal for Bram Fischer Airport (Y/N) | I3: N | J3: Select or type Y if you are submitting a proposal for this site.
A4: Name of Bidder | C4: =Summary!E2 -> 0 | J4: No action required from the Bidder.
A6: Estimate of Capital Investment | H6: R0.00 | J6: Type the information applicable for this site.
A7: The expected business growth over the duration of the concession (%) | H7: 0.0%
A8: Working capital required to start the business (year 1) | H8: R0.00
A9: Total square meters of the Development | H9: 0.00
A10: Hurdle Rate | H10: 0.0%
A11: Net Present Value (NPV) using 20 year period DCF | H11: 0.00
A12: Return on Investment (ROI) year 1 | H12: 0.00
A13: Average year-on-year over the 20-year lease duration | H13: 0.00
A14: Internal Rate of Return (IRR) | H14: 0.0%
A17: Estimate Time Line for the Framework for Infrastructure Delivery and Procurement Management (FIPDM) Project Stages
A18: Stage | G18: Start | H18: End | I18: Working Days
A19: 1. Initiation | I19: =NETWORKDAYS(G19,H19) -> 0 | J19: Type in the estimated start and end dates using the format yyyy/mm/dd e.g. 2023/09/01 The working days will be calculated for you. Formula: Networkdays(Start Date, End Date).
A20: 2. Concept | I20: =NETWORKDAYS(G20,H20) -> 0
A21: 3. Design Development | I21: 0
A22: 4. Design Documentation | I22: 0
A23: 5. Works | I23: 0
A24: 6. Handover | I24: 0
A25: 7. Close out | I25: 0
A27: Construction estimated from start and end | G27: =MIN(G19:G25) -> 00:00:00 | H27: =MAX(H19:H25) -> 00:00:00 | I27: 0 | J27: The earliest start date, latest end date and working days are calcuated. Holidays are no applicable for this exercise. No action is required from the Bidder.
A30: Land Lease Projection
A31: Year | E31: Escalation % | F31: Monthly Land Lease | H31: Annual Land Lease
A32: Year 1 | E32: - | H32: =F32*12 -> R0.00 | J32: Type in the monthly lease you propose for the first year. No other months are required because the percentage escalation is applied. The ACSA minimum percentage increase is 8%. You can change the percentage if required. The percentage will be revisited at the mid point of the contract i.e. year 10. The percentage escalation applies from the second year onwards. Formulae: Monthly Land Lease = Monthly Land Lease from previous year + Escalation percentage of Monthly Land Lease from previous year Annual Land Lease = Monthly Land Lease X 12
A33: Year 2 | E33: 8.0% | F33: =(F32*(1+E33)) -> R0.00 | H33: R0.00
A34: Year 3 | E34: 8.0% | F34: R0.00 | H34: R0.00
A35: Year 4 | E35: 8.0% | F35: R0.00 | H35: R0.00
A36: Year 5 | E36: 8.0% | F36: R0.00 | H36: R0.00
A37: Year 6 | E37: 8.0% | F37: R0.00 | H37: R0.00
A38: Year 7 | E38: 8.0% | F38: R0.00 | H38: R0.00
A39: Year 8 | E39: 8.0% | F39: R0.00 | H39: R0.00
A40: Year 9 | E40: 8.0% | F40: R0.00 | H40: R0.00
A41: Year 10 | E41: 8.0% | F41: R0.00 | H41: R0.00
A42: Year 11 | E42: 8.0% | F42: R0.00 | H42: R0.00
A43: Year 12 | E43: 8.0% | F43: R0.00 | H43: R0.00
A44: Year 13 | E44: 8.0% | F44: R0.00 | H44: R0.00
A45: Year 14 | E45: 8.0% | F45: R0.00 | H45: =F45*12 -> R0.00
A46: Year 15 | E46: 8.0% | F46: R0.00 | H46: =F46*12 -> R0.00
A47: Year 16 | E47: 8.0% | F47: R0.00 | H47: =F47*12 -> R0.00
A48: Year 17 | E48: 8.0% | F48: R0.00 | H48: =F48*12 -> R0.00
A49: Year 18 | E49: 8.0% | F49: R0.00 | H49: =F49*12 -> R0.00
A50: Year 19 | E50: 8.0% | F50: R0.00 | H50: R0.00
A51: Year 20 | E51: 8.0% | F51: R0.00 | H51: R0.00
A52: Total | H52: =SUM(H32:I51) -> R0.00 | J52: No action is required from the Bidder. Formula = sum(rows above)
A55: Projected Fuel Sales
A56: Year | C56: Profit % | D56: Monthly Sales | F56: Annual Sales | H56: Annual Profit
A57: Year 1 | C57: 10% | F57: =D57*12 -> R0.00 | H57: =(D57*C57)*12 -> R0.00 | J57: Type in the estimated monthly sales for each year. Suggest average is used. The proposed ACSA profit percentage is 10%. You can change the percentage if required. Formulae: Annual Sales = Monthly Sales X 12 Annual Profit = Profit percentage of Annual Sales
A58: Year 2 | C58: 10% | F58: =D58*12 -> R0.00 | H58: R0.00
A59: Year 3 | C59: 10% | F59: R0.00 | H59: R0.00
A60: Year 4 | C60: 10% | F60: R0.00 | H60: R0.00
A61: Year 5 | C61: 10% | F61: R0.00 | H61: R0.00
A62: Year 6 | C62: 10% | F62: R0.00 | H62: R0.00
A63: Year 7 | C63: 10% | F63: R0.00 | H63: R0.00
A64: Year 8 | C64: 10% | F64: R0.00 | H64: R0.00
A65: Year 9 | C65: 10% | F65: R0.00 | H65: R0.00
A66: Year 10 | C66: 10% | F66: R0.00 | H66: R0.00
A67: Year 11 | C67: 10% | F67: R0.00 | H67: R0.00
A68: Year 12 | C68: 10% | F68: R0.00 | H68: R0.00
A69: Year 13 | C69: 10% | F69: R0.00 | H69: R0.00
A70: Year 14 | C70: 10% | F70: R0.00 | H70: R0.00
A71: Year 15 | C71: 10% | F71: R0.00 | H71: R0.00
A72: Year 16 | C72: 10% | F72: R0.00 | H72: R0.00
A73: Year 17 | C73: 10% | F73: R0.00 | H73: R0.00
A74: Year 18 | C74: 10% | F74: R0.00 | H74: R0.00
A75: Year 19 | C75: 10% | F75: R0.00 | H75: R0.00
A76: Year 20 | C76: 10% | F76: R0.00 | H76: R0.00
A77: Total | F77: =SUM(F57:G76) -> R0.00 | H77: =SUM(H57:I76) -> R0.00 | J77: No action is required from the Bidder. Formula = sum(rows above)
A80: Projected Convenience Store Sales
A81: Year | C81: Profit % | D81: Monthly Sales | F81: Annual Sales | H81: Annual Profit
A82: Year 1 | C82: 1% | F82: =D82*12 -> R0.00 | H82: =(D82*C82)*12 -> R0.00 | J82: Type in the estimated monthly sales for each year. Suggest average is used. The proposed ACSA profit percentage is 1%. You can change the percentage if required. Formulae: Annual Sales = Monthly Sales X 12 Annual Profit = Profit percentage of Annual Sales
A83: Year 2 | C83: 1% | F83: =D83*12 -> R0.00 | H83: R0.00
A84: Year 3 | C84: 1% | F84: R0.00 | H84: R0.00
A85: Year 4 | C85: 1% | F85: R0.00 | H85: R0.00
A86: Year 5 | C86: 1% | F86: R0.00 | H86: R0.00
A87: Year 6 | C87: 1% | F87: R0.00 | H87: R0.00
A88: Year 7 | C88: 1% | F88: R0.00 | H88: R0.00
A89: Year 8 | C89: 1% | F89: R0.00 | H89: R0.00
A90: Year 9 | C90: 1% | F90: R0.00 | H90: R0.00
A91: Year 10 | C91: 1% | F91: R0.00 | H91: R0.00
A92: Year 11 | C92: 1% | F92: R0.00 | H92: R0.00
A93: Year 12 | C93: 1% | F93: R0.00 | H93: R0.00
A94: Year 13 | C94: 1% | F94: R0.00 | H94: R0.00
A95: Year 14 | C95: 1% | F95: R0.00 | H95: R0.00
A96: Year 15 | C96: 1% | F96: R0.00 | H96: R0.00
A97: Year 16 | C97: 1% | F97: R0.00 | H97: R0.00
A98: Year 17 | C98: 1% | F98: R0.00 | H98: R0.00
A99: Year 18 | C99: 1% | F99: R0.00 | H99: R0.00
A100: Year 19 | C100: 1% | F100: R0.00 | H100: R0.00
A101: Year 20 | C101: 1% | F101: R0.00 | H101: R0.00
A102: Total | F102: =SUM(F82:G101) -> R0.00 | H102: =SUM(H82:I101) -> R0.00 | J102: No action is required from the Bidder. Formula = sum(rows above)
A105: Projected Sales of Other Activities
A106: Year | C106: Profit % | D106: Monthly Sales | F106: Annual Sales | H106: Annual Profit
A107: Year 1 | C107: 1% | F107: =D107*12 -> R0.00 | H107: =(D107*C107)*12 -> R0.00 | J107: Type in the estimated monthly sales for each year. Suggest average is used. The proposed ACSA profit percentage is 1%. You can change the percentage if required. Formulae: Annual Sales = Monthly Sales X 12 Annual Profit = Profit percentage of Annual Sales
A108: Year 2 | C108: 1% | F108: R0.00 | H108: R0.00
A109: Year 3 | C109: 1% | F109: R0.00 | H109: R0.00
A110: Year 4 | C110: 1% | F110: R0.00 | H110: R0.00
A111: Year 5 | C111: 1% | F111: R0.00 | H111: R0.00
A112: Year 6 | C112: 1% | F112: R0.00 | H112: R0.00
A113: Year 7 | C113: 1% | F113: R0.00 | H113: R0.00
A114: Year 8 | C114: 1% | F114: R0.00 | H114: R0.00
A115: Year 9 | C115: 1% | F115: R0.00 | H115: R0.00
A116: Year 10 | C116: 1% | F116: R0.00 | H116: R0.00
A117: Year 11 | C117: 1% | F117: R0.00 | H117: R0.00
A118: Year 12 | C118: 1% | F118: R0.00 | H118: R0.00
A119: Year 13 | C119: 1% | F119: R0.00 | H119: R0.00
A120: Year 14 | C120: 1% | F120: R0.00 | H120: R0.00
A121: Year 15 | C121: 1% | F121: R0.00 | H121: R0.00
A122: Year 16 | C122: 1% | F122: R0.00 | H122: R0.00
A123: Year 17 | C123: 1% | F123: R0.00 | H123: R0.00
A124: Year 18 | C124: 1% | F124: R0.00 | H124: R0.00
A125: Year 19 | C125: 1% | F125: R0.00 | H125: R0.00
A126: Year 20 | C126: 1% | F126: R0.00 | H126: R0.00
A127: Total | F127: =SUM(F107:G126) -> R0.00 | H127: =SUM(H107:I126) -> R0.00 | J127: No action is required from the Bidder. Formula = sum(rows above)
A130: Projected Profit and Loss Statement for three years
A131: Sales Revenue | D131: Year 1 | F131: Year 2 | H131: Year 3
A132: Product / Service 1 | J132: Change the Product / Service description with an appropriate description of sales e.g. Unleaded Fuel. Change the descriptions for a maximum of 6 categories. Leave the description as is if you do not require it. Type in the estimated Sales for the first three years in the respective columns.
A133: Product / Service 2
A134: Product / Service 3
A135: Product / Service 4
A136: Product / Service 5
A137: Product / Service 6
A138: Sales Subtotal | D138: =SUM(D132:E137) -> R0.00 | F138: =SUM(F132:G137) -> R0.00 | H138: =SUM(H132:I137) -> R0.00 | J138: No action is required from the Bidder. Formula = sum(rows above)
A140: Cost of Sales | D140: Year 1 | F140: Year 2 | H140: Year 3
A141: =A132 -> Product / Service 1 | J141: Change the Product / Service description with an appropriate description of sales e.g. Deliveries. Change the descriptions for a maximum of 6 categories. Leave the description as is if you do not require it. Type in the estimated Cost of Sales for the first three years in the respective columns.
A142: Product / Service 2
A143: Product / Service 3
A144: Product / Service 4
A145: Product / Service 5
A146: Product / Service 6
A147: Cost of Sales Subtotal | D147: =SUM(D141:E146) -> R0.00 | F147: =SUM(F141:G146) -> R0.00 | H147: =SUM(H141:I146) -> R0.00 | J147: No action is required from the Bidder. Formula = sum(rows above)
A149: Gross Profit | D149: =D138-D147 -> R0.00 | F149: =F138-F147 -> R0.00 | H149: =H138-H147 -> R0.00 | J149: No action is required from the Bidder. Formula = Total Sales - Total Cost of Sales for the year
A151: Operating Expenses | D151: Year 1 | F151: Year 2 | H151: Year 3
A152: Summary Expense 1 | J152: Change the Summary Expense description with an appropriate description of expenses e.g. Stationery. Change the descriptions for a maximum of 12 categories. Leave the description as is if you do not require it. Type in the estimated Expense for the first three years in the respective columns.
A153: Summary Expense 2
A154: Summary Expense 3
A155: Summary Expense 4
A156: Summary Expense 5
A157: Summary Expense 6
A158: Summary Expense 7
A159: Summary Expense 8
A160: Summary Expense 9
A161: Summary Expense 10
A162: Summary Expense 11
A163: Summary Expense 12
A164: Operating Expenses Subtotal | D164: =SUM(D152:E163) -> R0.00 | F164: =SUM(F152:G163) -> R0.00 | H164: =SUM(H152:I163) -> R0.00 | J164: No action is required from the Bidder. Formula = Sum of all expenses for the year
A166: Income from Operations | D166: =D149-D164 -> R0.00 | F166: =F149-F164 -> R0.00 | H166: =H149-H164 -> R0.00 | J166: No action is required from the Bidder. Formula = Gross profit - Operating Expenses for the year
A168: Taxes | J168: Type is the estimated taxes payable for each year.
A170: Net Profit | D170: =D166-D168 -> R0.00 | F170: =F166-F168 -> R0.00 | H170: =H166-H168 -> R0.00 | J170: No action is required from the Bidder. Formula = Income from Operations - Taxes for the year
A171: Percent of net profit payable to ACSA | J171: Type is the estimated profit percentage payable for each year for ACSA.
A172: Estimated R value | D172: =D170*D171 -> R0.00 | F172: =F170*F171 -> R0.00 | H172: =H170*H171 -> R0.00 | J172: No action is required from the Bidder. Formula = Net Profit X ACSA Percentage of Net Profit for each year

Sheet George
J1: The information you need to type onto this document.
A2: ="The information for submitting a bid for George Airport Service Station with Convenient Store Operations for "&CHAR(10)&Summary!E2 -> The information for submitting a bid for George Airport Service Station with Convenient Store Operations for | J2: The heading includes the company name you typed on the summary page. No action is required from the Bidder.
A3: Proposal for George Airport (Y/N) | I3: N | J3: Select or type Y if you are submitting a proposal for this site.
A4: Name of Bidder | C4: =Summary!E2 -> 0 | J4: No action required from the Bidder.
A6: Estimate of Capital Investment | H6: R0.00 | J6: Type the information applicable for this site.
A7: The expected business growth over the duration of the concession (%) | H7: 0.0%
A8: Working capital required to start the business (year 1) | H8: R0.00
A9: Total square meters of the Development | H9: 0.00
A10: Hurdle Rate | H10: 0.0%
A11: Net Present Value (NPV) using 20 year period DCF | H11: 0.00
A12: Return on Investment (ROI) year 1 | H12: 0.00
A13: Average year-on-year over the 20-year lease duration | H13: 0.00
A14: Internal Rate of Return (IRR) | H14: 0.0%
A17: Estimate Time Line for the Framework for Infrastructure Delivery and Procurement Management (FIPDM) Project Stages
A18: Stage | G18: Start | H18: End | I18: Working Days
A19: 1. Initiation | I19: =NETWORKDAYS(G19,H19) -> 0 | J19: Type in the estimated start and end dates using the format yyyy/mm/dd e.g. 2023/09/01 The working days will be calculated for you. Formula: Networkdays(Start Date, End Date).
A20: 2. Concept | I20: =NETWORKDAYS(G20,H20) -> 0
A21: 3. Design Development | I21: 0
A22: 4. Design Documentation | I22: 0
A23: 5. Works | I23: 0
A24: 6. Handover | I24: 0
A25: 7. Close out | I25: 0
A27: Construction estimated from start and end | G27: =MIN(G19:G25) -> 00:00:00 | H27: =MAX(H19:H25) -> 00:00:00 | I27: 0 | J27: The earliest start date, latest end date and working days are calcuated. Holidays are no applicable for this exercise. No action is required from the Bidder.
A30: Land Lease Projection
A31: Year | E31: Escalation % | F31: Monthly Land Lease | H31: Annual Land Lease
A32: Year 1 | E32: - | H32: =F32*12 -> R0.00 | J32: Type in the monthly lease you propose for the first year. No other months are required because the percentage escalation is applied. The ACSA minimum percentage increase is 8%. You can change the percentage if required. The percentage will be revisited at the mid point of the contract i.e. year 10. The percentage escalation applies from the second year onwards. Formulae: Monthly Land Lease = Monthly Land Lease from previous year + Escalation percentage of Monthly Land Lease from previous year Annual Land Lease = Monthly Land Lease X 12
A33: Year 2 | E33: 8.0% | F33: =(F32*(1+E33)) -> R0.00 | H33: R0.00
A34: Year 3 | E34: 8.0% | F34: R0.00 | H34: R0.00
A35: Year 4 | E35: 8.0% | F35: R0.00 | H35: R0.00
A36: Year 5 | E36: 8.0% | F36: R0.00 | H36: R0.00
A37: Year 6 | E37: 8.0% | F37: R0.00 | H37: R0.00
A38: Year 7 | E38: 8.0% | F38: R0.00 | H38: R0.00
A39: Year 8 | E39: 8.0% | F39: R0.00 | H39: R0.00
A40: Year 9 | E40: 8.0% | F40: R0.00 | H40: R0.00
A41: Year 10 | E41: 8.0% | F41: R0.00 | H41: R0.00
A42: Year 11 | E42: 8.0% | F42: R0.00 | H42: R0.00
A43: Year 12 | E43: 8.0% | F43: R0.00 | H43: R0.00
A44: Year 13 | E44: 8.0% | F44: R0.00 | H44: R0.00
A45: Year 14 | E45: 8.0% | F45: R0.00 | H45: =F45*12 -> R0.00
A46: Year 15 | E46: 8.0% | F46: R0.00 | H46: =F46*12 -> R0.00
A47: Year 16 | E47: 8.0% | F47: R0.00 | H47: =F47*12 -> R0.00
A48: Year 17 | E48: 8.0% | F48: R0.00 | H48: =F48*12 -> R0.00
A49: Year 18 | E49: 8.0% | F49: R0.00 | H49: =F49*12 -> R0.00
A50: Year 19 | E50: 8.0% | F50: R0.00 | H50: R0.00
A51: Year 20 | E51: 8.0% | F51: R0.00 | H51: R0.00
A52: Total | H52: =SUM(H32:I51) -> R0.00 | J52: No action is required from the Bidder. Formula = sum(rows above)
A55: Projected Fuel Sales
A56: Year | C56: Profit % | D56: Monthly Sales | F56: Annual Sales | H56: Annual Profit
A57: Year 1 | C57: 10% | F57: =D57*12 -> R0.00 | H57: =(D57*C57)*12 -> R0.00 | J57: Type in the estimated monthly sales for each year. Suggest average is used. The proposed ACSA profit percentage is 10%. You can change the percentage if required. Formulae: Annual Sales = Monthly Sales X 12 Annual Profit = Profit percentage of Annual Sales
A58: Year 2 | C58: 10% | F58: =D58*12 -> R0.00 | H58: R0.00
A59: Year 3 | C59: 10% | F59: R0.00 | H59: R0.00
A60: Year 4 | C60: 10% | F60: R0.00 | H60: R0.00
A61: Year 5 | C61: 10% | F61: R0.00 | H61: R0.00
A62: Year 6 | C62: 10% | F62: R0.00 | H62: R0.00
A63: Year 7 | C63: 10% | F63: R0.00 | H63: R0.00
A64: Year 8 | C64: 10% | F64: R0.00 | H64: R0.00
A65: Year 9 | C65: 10% | F65: R0.00 | H65: R0.00
A66: Year 10 | C66: 10% | F66: R0.00 | H66: R0.00
A67: Year 11 | C67: 10% | F67: R0.00 | H67: R0.00
A68: Year 12 | C68: 10% | F68: R0.00 | H68: R0.00
A69: Year 13 | C69: 10% | F69: R0.00 | H69: R0.00
A70: Year 14 | C70: 10% | F70: R0.00 | H70: R0.00
A71: Year 15 | C71: 10% | F71: R0.00 | H71: R0.00
A72: Year 16 | C72: 10% | F72: R0.00 | H72: R0.00
A73: Year 17 | C73: 10% | F73: R0.00 | H73: R0.00
A74: Year 18 | C74: 10% | F74: R0.00 | H74: R0.00
A75: Year 19 | C75: 10% | F75: R0.00 | H75: R0.00
A76: Year 20 | C76: 10% | F76: R0.00 | H76: R0.00
A77: Total | F77: =SUM(F57:G76) -> R0.00 | H77: =SUM(H57:I76) -> R0.00 | J77: No action is required from the Bidder. Formula = sum(rows above)
A80: Projected Convenience Store Sales
A81: Year | C81: Profit % | D81: Monthly Sales | F81: Annual Sales | H81: Annual Profit
A82: Year 1 | C82: 1% | F82: =D82*12 -> R0.00 | H82: =(D82*C82)*12 -> R0.00 | J82: Type in the estimated monthly sales for each year. Suggest average is used. The proposed ACSA profit percentage is 1%. You can change the percentage if required. Formulae: Annual Sales = Monthly Sales X 12 Annual Profit = Profit percentage of Annual Sales
A83: Year 2 | C83: 1% | F83: =D83*12 -> R0.00 | H83: R0.00
A84: Year 3 | C84: 1% | F84: R0.00 | H84: R0.00
A85: Year 4 | C85: 1% | F85: R0.00 | H85: R0.00
A86: Year 5 | C86: 1% | F86: R0.00 | H86: R0.00
A87: Year 6 | C87: 1% | F87: R0.00 | H87: R0.00
A88: Year 7 | C88: 1% | F88: R0.00 | H88: R0.00
A89: Year 8 | C89: 1% | F89: R0.00 | H89: R0.00
A90: Year 9 | C90: 1% | F90: R0.00 | H90: R0.00
A91: Year 10 | C91: 1% | F91: R0.00 | H91: R0.00
A92: Year 11 | C92: 1% | F92: R0.00 | H92: R0.00
A93: Year 12 | C93: 1% | F93: R0.00 | H93: R0.00
A94: Year 13 | C94: 1% | F94: R0.00 | H94: R0.00
A95: Year 14 | C95: 1% | F95: R0.00 | H95: R0.00
A96: Year 15 | C96: 1% | F96: R0.00 | H96: R0.00
A97: Year 16 | C97: 1% | F97: R0.00 | H97: R0.00
A98: Year 17 | C98: 1% | F98: R0.00 | H98: R0.00
A99: Year 18 | C99: 1% | F99: R0.00 | H99: R0.00
A100: Year 19 | C100: 1% | F100: R0.00 | H100: R0.00
A101: Year 20 | C101: 1% | F101: R0.00 | H101: R0.00
A102: Total | F102: =SUM(F82:G101) -> R0.00 | H102: =SUM(H82:I101) -> R0.00 | J102: No action is required from the Bidder. Formula = sum(rows above)
A105: Projected Sales of Other Activities
A106: Year | C106: Profit % | D106: Monthly Sales | F106: Annual Sales | H106: Annual Profit
A107: Year 1 | C107: 1% | F107: =D107*12 -> R0.00 | H107: =(D107*C107)*12 -> R0.00 | J107: Type in the estimated monthly sales for each year. Suggest average is used. The proposed ACSA profit percentage is 1%. You can change the percentage if required. Formulae: Annual Sales = Monthly Sales X 12 Annual Profit = Profit percentage of Annual Sales
A108: Year 2 | C108: 1% | F108: R0.00 | H108: R0.00
A109: Year 3 | C109: 1% | F109: R0.00 | H109: R0.00
A110: Year 4 | C110: 1% | F110: R0.00 | H110: R0.00
A111: Year 5 | C111: 1% | F111: R0.00 | H111: R0.00
A112: Year 6 | C112: 1% | F112: R0.00 | H112: R0.00
A113: Year 7 | C113: 1% | F113: R0.00 | H113: R0.00
A114: Year 8 | C114: 1% | F114: R0.00 | H114: R0.00
A115: Year 9 | C115: 1% | F115: R0.00 | H115: R0.00
A116: Year 10 | C116: 1% | F116: R0.00 | H116: R0.00
A117: Year 11 | C117: 1% | F117: R0.00 | H117: R0.00
A118: Year 12 | C118: 1% | F118: R0.00 | H118: R0.00
A119: Year 13 | C119: 1% | F119: R0.00 | H119: R0.00
A120: Year 14 | C120: 1% | F120: R0.00 | H120: R0.00
A121: Year 15 | C121: 1% | F121: R0.00 | H121: R0.00
A122: Year 16 | C122: 1% | F122: R0.00 | H122: R0.00
A123: Year 17 | C123: 1% | F123: R0.00 | H123: R0.00
A124: Year 18 | C124: 1% | F124: R0.00 | H124: R0.00
A125: Year 19 | C125: 1% | F125: R0.00 | H125: R0.00
A126: Year 20 | C126: 1% | F126: R0.00 | H126: R0.00
A127: Total | F127: =SUM(F107:G126) -> R0.00 | H127: =SUM(H107:I126) -> R0.00 | J127: No action is required from the Bidder. Formula = sum(rows above)
A130: Projected Profit and Loss Statement for three years
A131: Sales Revenue | D131: Year 1 | F131: Year 2 | H131: Year 3
A132: Product / Service 1 | J132: Change the Product / Service description with an appropriate description of sales e.g. Unleaded Fuel. Change the descriptions for a maximum of 6 categories. Leave the description as is if you do not require it. Type in the estimated Sales for the first three years in the respective columns.
A133: Product / Service 2
A134: Product / Service 3
A135: Product / Service 4
A136: Product / Service 5
A137: Product / Service 6
A138: Sales Subtotal | D138: =SUM(D132:E137) -> R0.00 | F138: =SUM(F132:G137) -> R0.00 | H138: =SUM(H132:I137) -> R0.00 | J138: No action is required from the Bidder. Formula = sum(rows above)
A140: Cost of Sales | D140: Year 1 | F140: Year 2 | H140: Year 3
A141: =A132 -> Product / Service 1 | J141: Change the Product / Service description with an appropriate description of sales e.g. Deliveries. Change the descriptions for a maximum of 6 categories. Leave the description as is if you do not require it. Type in the estimated Cost of Sales for the first three years in the respective columns.
A142: Product / Service 2
A143: Product / Service 3
A144: Product / Service 4
A145: Product / Service 5
A146: Product / Service 6
A147: Cost of Sales Subtotal | D147: =SUM(D141:E146) -> R0.00 | F147: =SUM(F141:G146) -> R0.00 | H147: =SUM(H141:I146) -> R0.00 | J147: No action is required from the Bidder. Formula = sum(rows above)
A149: Gross Profit | D149: =D138-D147 -> R0.00 | F149: =F138-F147 -> R0.00 | H149: =H138-H147 -> R0.00 | J149: No action is required from the Bidder. Formula = Total Sales - Total Cost of Sales for the year
A151: Operating Expenses | D151: Year 1 | F151: Year 2 | H151: Year 3
A152: Summary Expense 1 | J152: Change the Summary Expense description with an appropriate description of expenses e.g. Stationery. Change the descriptions for a maximum of 12 categories. Leave the description as is if you do not require it. Type in the estimated Expense for the first three years in the respective columns.
A153: Summary Expense 2
A154: Summary Expense 3
A155: Summary Expense 4
A156: Summary Expense 5
A157: Summary Expense 6
A158: Summary Expense 7
A159: Summary Expense 8
A160: Summary Expense 9
A161: Summary Expense 10
A162: Summary Expense 11
A163: Summary Expense 12
A164: Operating Expenses Subtotal | D164: =SUM(D152:E163) -> R0.00 | F164: =SUM(F152:G163) -> R0.00 | H164: =SUM(H152:I163) -> R0.00 | J164: No action is required from the Bidder. Formula = Sum of all expenses for the year
A166: Income from Operations | D166: =D149-D164 -> R0.00 | F166: =F149-F164 -> R0.00 | H166: =H149-H164 -> R0.00 | J166: No action is required from the Bidder. Formula = Gross profit - Operating Expenses for the year
A168: Taxes | J168: Type is the estimated taxes payable for each year.
A170: Net Profit | D170: =D166-D168 -> R0.00 | F170: =F166-F168 -> R0.00 | H170: =H166-H168 -> R0.00 | J170: No action is required from the Bidder. Formula = Income from Operations - Taxes for the year
A171: Percent of net profit payable to ACSA | J171: Type is the estimated profit percentage payable for each year for ACSA.
A172: Estimated R value | D172: =D170*D171 -> R0.00 | F172: =F170*F171 -> R0.00 | H172: =H170*H171 -> R0.00 | J172: No action is required from the Bidder. Formula = Net Profit X ACSA Percentage of Net Profit for each year

Sheet References
A1: ="List of References for Bidder "&CHAR(10)&Summary!E2 -> List of References for Bidder
A2: Nature of Bidders Activities | B2: Client or Company Name | C2: Description of the Services Rendered | D2: Practical Completion Date | E2: Project Start Date | F2: Project End Date | G2: Project Value | H2: Contact Person Details: Initials, Surname and Contact Information | I2: Additional Comments
A3: Select from the list. Developer mean that your company was responsible for building the infrastructure only. Operator = your company was responsible for managing the day-to-day functioning of the service station and any other facilities. Developer and Operator = your company was responsible for both roles above. Managing specialist sub-contractors is assumed. | B3: The name of the Client or Company - this could be your own name if your infrastructure or operation. | C3: Additional space for describing services or functions performed especially those comparable to this proposal | D3: If the project is in progress then state the expected completion time like this eta 2024/06/30 for June 30th 2024. Type the date in this format: YYYY/MM/DD | E3: The date the project started work on site, from site establishment. Type the date in this format: YYYY/MM/DD | F3: The date work on site was concluded Type the date in this format: YYYY/MM/DD | G3: The total all inclusive project value. | H3: Contactable references that ACSA evaluation team may contact regarding the project you specified | I3: Any additional information that can assist the evaluation team or provide supporting information of documentation.
A4: Developer | B4: New Fuel (Pty) Ltd | C4: Turnkey construction | D4: eta 2024/11/30 | E4: 2023-01-16 | F4: eta 2024/11/30 | G4: R6,000,000.00 | H4: Mr Abie Gumede, cell 071-480-2323, 1 New Street, Centurion, George, Email Abie@NewFuel.com | I4: This is an example
A5: Operator | B5: Joe Blogg Service Station and Coffee Shop | C5: Existing infrastructure that we refurbished and operated for 16 years | D5: 2003-06-30 | E5: 2002-05-02 | F5: 2003-05-30 | G5: R3,000,000.00 | H5: Ms Jo-Ann Blogg, office 014-345-6578, 12 Main Road, Upington, JB@JoesService.com | I5: This is an example
A6: Developer and Operator | B6: Our Service Station #1 | C6: Developed the site and operate the service station, mechanic workshop and convenience store | D6: 2000-12-01 | E6: 1990-01-21 | F6: 2000-10-30 | G6: R1,000,000.00 | H6: Mr Jack Black, OurFuel (Pty) Ltd, 26 Jo Slovo Street, New Town, Cape Town, Office: 012-123-4567 email: Jack@BlackFuel.co.za | I6: This is an example

Sheet Documentation
A1: Document Name *If required | B1: Construction | C1: Operation | D1: Handover and Contract Conclusion
A2: Construction Plans | B2: Y
A3: Contact Schedule | B3: Y | C3: Y | D3: Y
A4: Design Development Report | B4: Y
A5: Detailed Design Study of the Mounting Structure incl. calculation sheets | B5: Y
A6: Fire Detection Design | B6: Y
A7: Fire Detection Spare Parts | B7: Y | C7: Y
A8: Fire Water Design | D8: Y
A9: Fire Water Spare Parts | D9: Y
A10: Hazard Identification and Risk Assessment (HIRA) | B10: Y | C10: Y | D10: Y
A11: Health and Safety Plan | C11: Y | D11: Y
A12: HVAC Design | C12: Y
A13: HVAC Spare Parts | B13: Y
A14: Loop Calculations - Fire Detection | B14: Y
A15: Material datasheets for Equipment | B15: Y | C15: Y | D15: Y
A16: Meeting Administration like Minutes etc. | C16: Y | D16: Y
A17: Method Statement | D17: Y
A18: Minimum inventory list | D18: Y
A19: Operational Plans | D19: Y
A20: Photo Progress Reports | D20: Y
A21: Plumbing Design | D21: Y
A22: Plumbing Spare Parts | C22: Y
A23: Progress Progress Reports | C23: Y
A24: Project Management Plan | C24: Y
A25: Risk Response Plan | C25: Y
A26: Safety | C26: Y
A27: Stakeholder Meeting | C27: Y
A28: The Contract Documentation | C28: Y
A29: Applications and Approvals listed but not limited to and where applicable
A30: Council | B30: Y
A31: *Civil Aviation Authority (CAA) | B31: Y
A32: ACSA Permit - Hot Works | B32: Y
A33: ACSA Permit - Safety File | B33: Y
A34: Any Other Regulatory (BY-laws) | B34: Y
A35: Department of Transport | B35: Y
A36: Design Stage Approval | B36: Y
A37: Environmental Impact Assessment (EIA) | B37: Y
A38: ESKOM | B38: Y | C38: Y
A39: Municipal - Approval | B39: Y | C39: Y
A40: Municipal - Building Permit | B40: Y
A41: Municipal - Excavation Permit | B41: Y
A42: Traffic Impact Assessment (TIA) | B42: Y
A43: Drawings, Layouts listed but not limited to and where applicable
A44: As Build Drawings | B44: Y
A45: Assembly plans and drawing sections of Equipment | B45: Y
A46: Building Layouts and Drawings (formats .pdf .dwg risa) | B46: Y
A47: Design Drawings | B47: Y
A48: Electrical Layouts and Drawings (formats .pdf .dwg risa) | B48: Y
A49: Fire Detection System (formats .pdf .dwg risa) | B49: Y
A50: Fire Water System (formats .pdf .dwg risa) | B50: Y
A51: HVAC System (formats .pdf .dwg risa) | B51: Y
A52: IT Cabling Layouts and Drawings (formats .pdf .dwg risa) | B52: Y
A53: Mechanical Layouts and Drawings (formats .pdf .dwg risa) | B53: Y
A54: Piping and Instrumentation Diagrams (formats .pdf .dwg risa) | B54: Y
A55: Rough Sketches | B55: Y
A56: Shop Drawings | B56: Y
A57: Manuals listed but not limited to and where applicable
A58: O & M Manual - Plumbing Design | D58: Y
A59: Installation methodology for Equipment | D59: Y
A60: O & M Manual - Fire Detection Design | D60: Y
A61: O & M Manual - Fire Water Design | D61: Y
A62: O & M Manual - HVAC Design | D62: Y
A63: Specifications listed but not limited to and where applicable
A64: For Equipment | D64: Y
A65: For Safe Operation | D65: Y
A66: Commissioning and Testing listed but not limited to and where applicable
A67: Test protocols of the Pull-out tests | D67: Y
A68: Completion Test for compliance to Grid Code Compliance (national and local grid code compliance) | D68: Y
A69: Factory Acceptance Certificates for Equipment | D69: Y
A70: Fire Detection Water Pressure Test Results | D70: Y
A71: Fire Water: Water Pressure Test Results | D71: Y
A72: HVAC Ambient Average Temperature for Heating/Cooling Test Results | D72: Y
A73: HVAC Electrical Levels Test Results | D73: Y
A74: HVAC Noise Levels Test Results | D74: Y
A75: HVAC Pitout Tube Readings to Confirm Total Air Flows Test Results | D75: Y
A76: HVAC Refrigeration Piping Pressure Test Results | D76: Y
A77: HVAC Refrigeration Piping Vacuum Test Results | D77: Y
A78: HVAC Ventilation for Extraction Test Results | D78: Y
A79: HVAC Ventilation for Fresh Air Test Results | D79: Y
A80: IEC 62446 Phase 1: Provisional Acceptance Test for confirmation that the performance ratio of the plant and design quality, construction and correction operation supervised by an Independent Technical Advisor | D80: Y
A81: IEC 62446 Phase 2: Intermediate Acceptance Test for Performance and Availability Verification - 1 year in duration | D81: Y
A82: IEC 62446 Phase 3: Final Acceptance Test performed 2 years after Provisional Acceptance Test | D82: Y
A83: Mechanical Completion Test for correlation between design and as-built | D83: Y
A84: Plumbing Water Pressure Test Results | D84: Y
A85: Torque tightening verification values | D85: Y
A86: Training listed but not limited to and where applicable
A87: Training records - Attendance register, Certificates | C87: Y | D87: Y
A88: Fire Detection Training Certificates | C88: Y | D88: Y
A89: Fire Water Training Certificates | C89: Y | D89: Y
A90: HVAC Training Certificates | C90: Y | D90: Y
A91: Plumbing Training Certificates | C91: Y | D91: Y
A92: Training material | C92: Y | D92: Y
A93: Certificates listed but not limited to and where applicable
A94: Solar Plant Equipment Certificates | B94: Y | D94: Y
A95: Compliance Certificate - Fire Detection Mechanical Engineer SANS form 4 | B95: Y | D95: Y
A96: Compliance Certificate - Fire Detection SANS 10139 | B96: Y | D96: Y
A97: Compliance Certificate - Fire Detection SAQCC | B97: Y | D97: Y
A98: Compliance Certificate - Fire Water ASIB | B98: Y | D98: Y
A99: Compliance Certificate - Fire Water Mechanical Engineer SANS form 4 | B99: Y | D99: Y
A100: Compliance Certificate - Fire Water SANS 10139 | B100: Y | D100: Y
A101: Compliance Certificate - Fire Water SAQCC | B101: Y | D101: Y
A102: Compliance Certificate - HVAC Electrical | B102: Y | D102: Y
A103: Compliance Certificate - HVAC Mechanical Engineer SANS form 4 | B103: Y | D103: Y
A104: Compliance Certificate - HVAC Refrigeration SAQCC | B104: Y | D104: Y
A105: Compliance Certificate - Mechanical Engineer SANS form 4 | B105: Y | D105: Y
A106: Compliance Certificate - Plumbing SAQCC | B106: Y | D106: Y
